fUST/lending_fUST_20241013
["ID","MTS","AMOUNT","RATE_DAILY","PERIOD"]
[340185949,1728792639762,-6933.60126732,0.00034286,2]
[340185950,1728792639773,-7661.54,0.000345,30]
[340185951,1728792639784,-6933.60126732,0.0003463,2]
[340185952,1728792639794,-228.72861046,0.00034646,5]
[340185953,1728792639805,-1387.19669118,0.00034646,5]
[340185954,1728792639815,-1111.0,0.00034849,120]
[340185955,1728792639826,-6933.60126732,0.00034859,2]
[340185956,1728792639836,-515.30225954,0.0003487,2]
[340185957,1728792639845,-500.0,0.0003499,10]
[340185958,1728792639854,-500.0,0.0003499,10]
[340185960,1728792639953,-500.0,0.0003499,10]
[340185961,1728792639965,-500.0,0.0003499,10]
[340185962,1728792639975,-500.0,0.0003499,10]
[340185963,1728792639984,-500.0,0.0003499,10]
[340185964,1728792639993,-190.0,0.0003499,10]
[340185965,1728792640002,-343.11352019,0.0003499,10]
[340185966,1728792640012,-505.05035527,0.0003499,10]
[340185967,1728792640021,-500.0,0.0003499,10]
[340185968,1728792640030,-500.0,0.0003499,10]
[340185969,1728792640039,-500.0,0.0003499,10]
[340185970,1728792640048,-500.0,0.0003499,10]
[340185971,1728792640058,-500.0,0.0003499,10]
[340185972,1728792640067,-500.0,0.0003499,10]
[340185973,1728792640077,-500.0,0.0003499,10]
[340185974,1728792640087,-509.06308094,0.0003499,10]
[340185975,1728792640096,-500.0,0.0003499,10]
[340185976,1728792640105,-500.0,0.0003499,10]
[340185977,1728792640115,-500.0,0.0003499,10]
[340185978,1728792640124,-500.0,0.0003499,10]
[340185979,1728792640133,-500.0,0.0003499,10]
[340185980,1728792640143,-500.0,0.0003499,10]
[340185981,1728792640152,-500.0,0.0003499,10]
[340185982,1728792640161,-500.0,0.0003499,10]
[340185983,1728792640170,-500.0,0.0003499,10]
[340185984,1728792640179,-500.0,0.0003499,10]
[340185985,1728792640188,-500.0,0.0003499,10]
[340185986,1728792640198,-500.0,0.0003499,10]
[340185987,1728792640208,-500.0,0.0003499,10]
[340185988,1728792640217,-500.0,0.0003499,10]
[340185989,1728792640227,-506.12859951,0.0003499,10]
[340185990,1728792640236,-854.73081106,0.0003499,10]
[340185991,1728792640246,-500.0,0.0003499,10]
[340185992,1728792640255,-500.0,0.0003499,10]
[340185993,1728792640264,-500.0,0.0003499,10]
[340185994,1728792640273,-500.0,0.0003499,10]
[340185995,1728792640283,-500.0,0.0003499,10]
[340185996,1728792640291,-302.45563732,0.00035,2]
[340185997,1728792640301,-304.39,0.00035,30]
[340185998,1728792640310,-302.42545213,0.00035,2]
[340185999,1728792640320,-6933.60126732,0.00035168,2]
[340186000,1728792640329,-12664.10253414,0.00035194,2]
[340186001,1728792640340,-302.45563732,0.0003535,2]
[340186002,1728792640351,-302.42545213,0.0003535,2]
[340186003,1728792640362,-1000.0,0.00035452,5]
[340186004,1728792640373,-177.22660455,0.00035452,5]
[340186005,1728792640384,-428.45778024,0.00035452,5]
[340186006,1728792640393,-1000.0,0.00035452,5]
[340186007,1728792640402,-1000.0,0.00035452,5]
[340186008,1728792640423,-1000.0,0.00035452,5]
[340186009,1728792640433,-1000.0,0.0003553,5]
[340186010,1728792640443,-6933.60126732,0.00035548,2]
[340186011,1728792640453,-169.5,0.00035559,5]
[340186012,1728792640463,-823.0,0.0003558,2]
[340186013,1728792640473,-524.7919962,0.00035616,7]
[340186014,1728792640482,-500.0,0.00035616,7]
[340186015,1728792640491,-500.0,0.00035616,7]
[340186016,1728792640502,-500.0,0.00035616,7]
[340186017,1728792640511,-500.0,0.00035616,7]
[340186018,1728792640521,-500.0,0.00035616,7]
[340186019,1728792640530,-500.0,0.00035616,7]
[340186020,1728792640540,-500.0,0.00035616,7]
[340186021,1728792640550,-500.0,0.00035616,7]
[340186022,1728792640559,-500.0,0.00035616,7]
[340186023,1728792640568,-500.0,0.00035616,7]
[340186024,1728792640578,-500.0,0.00035616,7]
[340186025,1728792640587,-500.0,0.00035616,7]
[340186026,1728792640597,-500.0,0.00035616,7]
[340186027,1728792640607,-500.0,0.00035616,7]
[340186028,1728792640617,-500.0,0.00035616,7]
[340186029,1728792640627,-500.0,0.00035616,7]
[340186030,1728792640639,-500.0,0.00035616,7]
[340186031,1728792640648,-500.0,0.00035616,7]
[340186032,1728792640658,-500.0,0.00035616,7]
[340186033,1728792640671,-500.0,0.00035616,7]
[340186034,1728792640681,-500.0,0.00035616,7]
[340186035,1728792640692,-500.0,0.00035616,7]
[340186036,1728792640702,-500.0,0.00035616,7]
[340186037,1728792640713,-500.0,0.00035616,7]
[340186038,1728792640723,-500.0,0.00035616,7]
[340186039,1728792640734,-500.0,0.00035616,7]
[340186040,1728792640746,-500.0,0.00035616,7]
[340186041,1728792640757,-500.0,0.00035616,7]
[340186042,1728792640768,-500.0,0.00035616,7]
[340186043,1728792640778,-500.0,0.00035616,7]
[340186044,1728792640792,-500.0,0.00035616,7]
[340186045,1728792640803,-500.0,0.00035616,7]
[340186046,1728792640815,-500.0,0.00035616,7]
[340186047,1728792640827,-500.0,0.00035616,7]
[340186048,1728792640838,-500.0,0.00035616,7]
[340186049,1728792640849,-500.0,0.00035616,7]
[340186050,1728792640861,-500.0,0.00035616,7]
[340186051,1728792640873,-486.76280568,0.00035616,7]
[340186052,1728792640883,-500.0,0.00035616,7]
[340186053,1728792640894,-500.0,0.00035616,7]
[340186054,1728792640904,-500.0,0.00035616,7]
[340186055,1728792640914,-500.0,0.00035616,7]
[340186056,1728792640926,-500.0,0.00035616,7]
[340186057,1728792640936,-500.0,0.00035616,7]
[340186058,1728792640947,-500.0,0.00035616,7]
[340186059,1728792640960,-500.0,0.00035616,7]
[340186060,1728792640970,-500.0,0.00035616,7]
[340186061,1728792640980,-500.0,0.00035616,7]
[340186062,1728792640990,-500.0,0.00035616,7]
[340186063,1728792641000,-500.0,0.00035673,5]
[340186064,1728792641010,-500.74090198,0.00035673,5]
[340186065,1728792641019,-500.0,0.00035673,5]
[340186066,1728792641029,-500.0,0.00035673,5]
[340186067,1728792641038,-151.0,0.00035673,14]
[340186068,1728792641047,-151.0,0.00035688,14]
[340186069,1728792641056,-151.0,0.00035688,14]
[340186070,1728792641066,-151.0,0.00035688,14]
[340186071,1728792641076,-171.249174,0.00035688,14]
[340186072,1728792641087,-171.249174,0.00035688,14]
[340186073,1728792641097,-2485.328354,0.00035688,14]
[340186074,1728792641106,-1028.28,0.000357,30]
[340186075,1728792641116,-1063.02,0.000357,30]
[340186076,1728792641125,-302.45563732,0.000357,2]
[340186077,1728792641134,-302.42545213,0.000357,2]
[340186078,1728792641144,-150.112235,0.000358,6]
[340186079,1728792641154,-6933.60126732,0.00035861,2]
[340186080,1728792641164,-150.0,0.00036,120]
[340186081,1728792641174,-155.0,0.00036,2]
[340186082,1728792641183,-6933.60126732,0.00036017,2]
[340186083,1728792641193,-302.45563732,0.0003605,2]
[340186084,1728792641202,-302.42545213,0.0003605,2]
[340186085,1728792641212,-7661.54,0.000361,30]
[340186086,1728792641221,-6933.60126732,0.00036176,2]
[340186087,1728792641231,-302.45563732,0.000364,2]
[340186088,1728792641241,-302.42545213,0.000364,2]
[340186089,1728792641250,-150.112233,0.000366,6]
[340186090,1728792641259,-6933.60126732,0.00036618,2]
[340186091,1728792641269,-153.0,0.0003672,120]
[340186092,1728792641278,-153.0,0.0003672,120]
[340186093,1728792641288,-153.0,0.0003672,120]
[340186094,1728792641298,-153.0,0.0003672,120]
[340186095,1728792641308,-153.0,0.0003672,120]
[340186096,1728792641317,-153.0,0.0003672,120]
[340186097,1728792641326,-153.0,0.0003672,120]
[340186098,1728792641336,-153.0,0.0003672,120]
[340186099,1728792641345,-153.0,0.0003672,120]
[340186100,1728792641354,-153.0,0.0003672,120]
[340186101,1728792641363,-153.0,0.0003672,120]
[340186102,1728792641374,-153.0,0.0003672,120]
[340186103,1728792641385,-153.0,0.0003672,120]
[340186104,1728792641394,-153.0,0.0003672,120]
[340186105,1728792641404,-153.0,0.0003672,120]
[340186106,1728792641414,-153.0,0.0003672,120]
[340186107,1728792641423,-153.0,0.0003672,120]
[340186108,1728792641432,-153.0,0.0003672,120]
[340186109,1728792641441,-153.0,0.0003672,120]
[340186110,1728792641451,-153.0,0.0003672,120]
[340186111,1728792641460,-153.0,0.0003672,120]
[340186112,1728792641469,-153.0,0.0003672,120]
[340186113,1728792641479,-153.0,0.0003672,120]
[340186114,1728792641488,-153.0,0.0003672,120]
[340186115,1728792641498,-153.0,0.0003672,120]
[340186116,1728792641508,-153.0,0.0003672,120]
[340186117,1728792641518,-153.0,0.00036722,120]
[340186118,1728792641528,-153.0,0.00036722,120]
[340186119,1728792641538,-153.0,0.00036722,120]
[340186120,1728792641548,-153.0,0.00036722,120]
[340186121,1728792641558,-153.0,0.00036722,120]
[340186122,1728792641569,-153.0,0.00036722,120]
[340186123,1728792641578,-153.0,0.00036722,120]
[340186124,1728792641657,-153.0,0.00036722,120]
[340186125,1728792641675,-153.0,0.00036722,120]
[340186126,1728792641685,-153.0,0.00036722,120]
[340186127,1728792641695,-153.0,0.00036722,120]
[340186128,1728792641705,-153.0,0.00036722,120]
[340186129,1728792641714,-153.0,0.00036722,120]
[340186130,1728792641723,-153.0,0.00036722,120]
[340186131,1728792641733,-153.0,0.00036722,120]
[340186132,1728792641743,-153.0,0.00036722,120]
[340186133,1728792641752,-153.0,0.00036722,120]
[340186134,1728792641762,-453.68345598,0.0003675,4]
[340186135,1728792641772,-453.63817819,0.0003675,4]
[340186136,1728792641781,-516.18144405,0.00036822,2]
[340186137,1728792641791,-6933.60126732,0.00036919,2]
[340186138,1728792641801,-199.265432,0.00037033,14]
[340186139,1728792641810,-199.265432,0.00037033,14]
[340186140,1728792641820,-837.51623956,0.00037042,5]
[340186141,1728792641829,-1000.0,0.00037042,5]
[340186142,1728792641838,-1028.28,0.000371,30]
[340186143,1728792641847,-1063.02,0.000371,30]
[340186144,1728792641857,-453.68345598,0.000371,4]
[340186145,1728792641866,-453.63817819,0.000371,4]
[340186146,1728792641875,-6933.60126732,0.0003719,2]
[340186147,1728792641886,-169.5,0.00037226,6]
[340186148,1728792641898,-1447.6774,0.00037284,30]
[340186149,1728792641907,-6933.60126732,0.0003732,2]
[340186150,1728792641916,-151.0,0.00037386,14]
[340186151,1728792641926,-509.381723,0.00037386,14]
[340186152,1728792641935,-509.381723,0.00037386,14]
[340186153,1728792641944,-846.961068,0.00037386,14]
[340186154,1728792641953,-846.961068,0.00037386,14]
[340186155,1728792641963,-614.515524,0.00037386,14]
[340186156,1728792641973,-614.515524,0.00037386,14]
[340186157,1728792641983,-155.408013,0.00037386,14]
[340186158,1728792641993,-150.112233,0.000374,8]
[340186159,1728792642004,-151.0,0.00037435,14]
[340186160,1728792642015,-389.85097,0.00037435,14]
[340186161,1728792642025,-151.0,0.00037435,14]
[340186162,1728792642034,-151.0,0.00037435,14]
[340186163,1728792642045,-453.68345598,0.0003745,4]
[340186164,1728792642057,-453.63817819,0.0003745,4]
[340186165,1728792642069,-856.3326618,0.00037455,5]
[340186166,1728792642079,-1500.0,0.00037455,5]
[340186167,1728792642089,-1500.0,0.00037455,5]
[340186168,1728792642099,-1500.0,0.00037455,5]
[340186169,1728792642108,-150.0,0.00037466,2]
[340186170,1728792642117,-346.233407,0.00037528,14]
[340186171,1728792642126,-287.916604,0.00037528,14]
[340186172,1728792642136,-346.233407,0.00037528,14]
[340186173,1728792642146,-287.916604,0.00037528,14]
[340186174,1728792642156,-408.761094,0.00037528,14]
[340186175,1728792642165,-408.761094,0.00037528,14]
[340186176,1728792642174,-1500.0,0.00037533,5]
[340186177,1728792642183,-153.0,0.00037534,2]
[340186178,1728792642193,-153.0,0.00037534,2]
[340186179,1728792642202,-7661.54,0.000376,30]
[340186180,1728792642212,-823.0,0.00037625,2]
[340186181,1728792642221,-150.0,0.0003768,2]
[340186182,1728792642230,-480.810538,0.00037692,2]
[340186183,1728792642240,-6933.60126732,0.00037736,2]
[340186184,1728792642250,-150.112233,0.000378,10]
[340186185,1728792642259,-453.68345598,0.000378,4]
[340186186,1728792642269,-453.63817819,0.000378,4]
[340186187,1728792642279,-6933.60126732,0.00037925,2]
[340186188,1728792642289,-157.0,0.0003793,2]
[340186189,1728792642299,-150.0,0.00038,120]
[340186190,1728792642309,-166.05404334,0.00038,7]
[340186191,1728792642317,-152.88257169,0.00038013,2]
[340186192,1728792642327,-453.68345598,0.0003815,4]
[340186193,1728792642337,-453.63817819,0.0003815,4]
[340186194,1728792642347,-150.112233,0.000382,8]
[340186195,1728792642358,-6933.60126738,0.00038214,2]
[340186196,1728792642368,-1867.27,0.00038356,2]
[340186197,1728792642378,-1028.28,0.000384,30]
[340186198,1728792642388,-1063.02,0.000384,30]
[340186199,1728792642399,-1152.0,0.00038416,5]
[340186200,1728792642409,-151.0,0.00038561,14]
[340186201,1728792642419,-151.0,0.00038561,14]
[340186202,1728792642431,-151.0,0.00038561,14]
[340186203,1728792642443,-3000.0,0.00038561,90]
[340186204,1728792642454,-3000.0,0.00038561,90]
[340186205,1728792642466,-3000.0,0.00038561,90]
[340186206,1728792642477,-3000.0,0.00038561,90]
[340186207,1728792642487,-3000.0,0.00038561,90]
[340186208,1728792642496,-3000.0,0.00038561,90]
[340186209,1728792642506,-3000.0,0.00038561,90]
[340186210,1728792642515,-3000.0,0.00038561,90]
[340186211,1728792642525,-1176.399964,0.00038561,90]
[340186212,1728792642535,-171.249174,0.00038561,14]
[340186213,1728792642544,-171.249174,0.00038561,14]
[340186214,1728792642554,-151.0,0.0003857,14]
[340186215,1728792642564,-150.0,0.00038573,5]
[340186216,1728792642573,-150.0,0.00038573,5]
[340186217,1728792642583,-150.0,0.00038573,5]
[340186218,1728792642593,-182.42681526,0.00038589,2]
[340186219,1728792642604,-1939.85042505,0.00038589,2]
[340186220,1728792642614,-105435.49747562,0.0003859,2]
[340186221,1728792642654,-70.77305926,0.0003859,2]
[340186222,1728792642968,-355.85628718,0.00028278,2]
[340186223,1728792642979,-150.112233,0.000301,5]
[340186224,1728792642990,-150.112233,0.000308,7]
[340186225,1728792643001,-3874.09436649,0.00031164,2]
[340186226,1728792643012,-150.112233,0.000314,10]
[340186227,1728792643022,-150.112233,0.00032,5]
[340186228,1728792643033,-150.112233,0.000326,7]
[340186229,1728792643042,-2485.328354,0.00038561,14]
[340186230,1728792643051,-7142.81425172,0.0003859,2]
[340186231,1728792643065,-151.0,0.0003859,14]
[340186232,1728792643075,-151.0,0.0003859,14]
[340186233,1728792643085,-151.0,0.0003859,14]
[340186234,1728792643096,-151.0,0.0003859,14]
[340186235,1728792643106,-151.0,0.0003859,14]
[340186236,1728792643116,-289.450273,0.0003859,14]
[340186237,1728792643128,-151.0,0.0003859,14]
[340186238,1728792643139,-151.0,0.0003859,14]
[340186239,1728792643148,-151.0,0.0003859,14]
[340186240,1728792643159,-151.0,0.0003859,14]
[340186241,1728792643171,-1372.951988,0.0003859,14]
[340186242,1728792643182,-151.0,0.0003859,14]
[340186243,1728792643194,-151.0,0.0003859,14]
[340186244,1728792643205,-358.524904,0.0003859,14]
[340186245,1728792643217,-358.524904,0.0003859,14]
[340186246,1728792643227,-151.0,0.0003859,14]
[340186247,1728792643237,-151.0,0.0003859,14]
[340186248,1728792643315,-151.0,0.0003859,14]
[340186249,1728792643324,-151.0,0.0003859,14]
[340186250,1728792643333,-151.0,0.0003859,14]
[340186251,1728792643344,-272.042262,0.0003859,14]
[340186252,1728792643355,-272.042262,0.0003859,14]
[340186253,1728792643365,-151.0,0.0003859,14]
[340186254,1728792643376,-151.0,0.0003859,14]
[340186255,1728792643389,-151.0,0.0003859,14]
[340186256,1728792643400,-151.0,0.0003859,14]
[340186257,1728792643414,-151.0,0.0003859,14]
[340186258,1728792643424,-151.0,0.0003859,14]
[340186259,1728792643434,-151.0,0.0003859,14]
[340186260,1728792643447,-290.899228,0.0003859,14]
[340186261,1728792643458,-239.3504,0.0003859,14]
[340186262,1728792643468,-239.3504,0.0003859,14]
[340186263,1728792643483,-346.233407,0.0003859,14]
[340186264,1728792643495,-287.916604,0.0003859,14]
[340186265,1728792643504,-214.488169,0.0003859,14]
[340186266,1728792643513,-346.233407,0.0003859,14]
[340186267,1728792643524,-287.916604,0.0003859,14]
[340186268,1728792643534,-214.488169,0.0003859,14]
[340186269,1728792643545,-151.0,0.0003859,14]
[340186270,1728792643556,-151.0,0.0003859,14]
[340186271,1728792643566,-408.761094,0.0003859,14]
[340186272,1728792643578,-408.761094,0.0003859,14]
[340186273,1728792643588,-151.0,0.0003859,14]
[340186274,1728792643600,-509.381723,0.0003859,14]
[340186275,1728792643610,-509.381723,0.0003859,14]
[340186276,1728792643621,-199.265432,0.0003859,14]
[340186277,1728792643633,-199.265432,0.0003859,14]
[340186278,1728792643643,-846.961068,0.0003859,14]
[340186279,1728792643652,-846.961068,0.0003859,14]
[340186280,1728792643661,-151.0,0.0003859,2]
[340186281,1728792643671,-151.0,0.0003859,14]
[340186282,1728792643680,-614.515524,0.0003859,14]
[340186283,1728792643690,-151.0,0.0003859,14]
[340186284,1728792643702,-614.515524,0.0003859,14]
[340186285,1728792643714,-151.0,0.0003859,14]
[340186286,1728792643726,-151.0,0.0003859,14]
[340186287,1728792643737,-171.249174,0.0003859,14]
[340186288,1728792643748,-171.249174,0.0003859,14]
[340186289,1728792643759,-151.0,0.0003859,14]
[340186290,1728792643769,-2485.328354,0.0003859,14]
[340186291,1728792643781,-272.90402714,0.0003859,2]
[340186292,1728792643791,-14243.11926887,0.000386,4]
[340186293,1728792643802,-10000.0,0.000386,4]
[340186294,1728792643813,-39383.35781538,0.0003861,2]
[340186295,1728792643822,-151.0,0.0003861,14]
[340186296,1728792643833,-151.0,0.0003861,14]
[340186297,1728792643842,-179.408732,0.0003861,14]
[340186298,1728792643852,-151.0,0.0003861,14]
[340186299,1728792643862,-151.0,0.0003861,14]
[340186300,1728792643871,-151.0,0.0003861,14]
[340186301,1728792643880,-239.3504,0.0003861,14]
[340186302,1728792643891,-239.3504,0.0003861,14]
[340186303,1728792643900,-214.488169,0.0003861,14]
[340186304,1728792643909,-214.488169,0.0003861,14]
[340186305,1728792643918,-151.0,0.0003861,14]
[340186306,1728792643928,-151.0,0.0003861,14]
[340186307,1728792643937,-1867.27,0.0003863,2]
[340186308,1728792643947,-12664.10253414,0.00038701,2]
[340186309,1728792643957,-1111.0,0.00038795,7]
[340186310,1728792643966,-169.5,0.00038894,7]
[340186311,1728792643976,-150.112235,0.000389,6]
[340186312,1728792643985,-7661.54,0.000389,30]
[340186313,1728792643995,-1867.27,0.00038904,2]
[340186314,1728792644005,-151.0,0.00038945,14]
[340186315,1728792644014,-151.0,0.0003897,14]
[340186316,1728792644023,-151.0,0.0003899,14]
[340186317,1728792644033,-509.381723,0.0003899,14]
[340186318,1728792644042,-509.381723,0.0003899,14]
[340186319,1728792644052,-846.961068,0.0003899,14]
[340186320,1728792644061,-846.961068,0.0003899,14]
[340186321,1728792644071,-151.0,0.0003899,2]
[340186322,1728792644080,-151.0,0.0003899,14]
[340186323,1728792644089,-614.515524,0.0003899,14]
[340186324,1728792644098,-614.515524,0.0003899,14]
[340186325,1728792644108,-2222.0,0.00039,60]
[340186326,1728792644117,-3658.07376507,0.00039,60]
[340186327,1728792644127,-26082.95271856,0.00039,2]
[340186328,1728792644137,-30000.0,0.00039,30]
[340186329,1728792644146,-226.790815,0.00039,14]
[340186330,1728792644155,-1000.0,0.00039,30]
[340186331,1728792644164,-151.0,0.00039,14]
[340186332,1728792644173,-151.0,0.00039,14]
[340186333,1728792644182,-389.85097,0.00039,14]
[340186334,1728792644191,-151.0,0.00039,14]
[340186335,1728792644200,-151.0,0.00039,14]
[340186336,1728792644209,-2000.0,0.00039,30]
[340186337,1728792644218,-346.233407,0.00039,14]
[340186338,1728792644228,-287.916604,0.00039,14]
[340186339,1728792644237,-346.233407,0.00039,14]
[340186340,1728792644246,-287.916604,0.00039,14]
[340186341,1728792644256,-408.761094,0.00039,14]
[340186342,1728792644265,-408.761094,0.00039,14]
[340186343,1728792644274,-199.265432,0.00039,14]
[340186344,1728792644284,-199.265432,0.00039,14]
[340186345,1728792644293,-151.0,0.00039,14]
[340186346,1728792644302,-153.797713,0.00039,14]
[340186347,1728792644312,-151.0,0.00039,14]
[340186348,1728792644322,-171.249174,0.00039,14]
[340186349,1728792644331,-171.249174,0.00039,14]
[340186350,1728792644340,-2485.328354,0.00039,14]
[340186351,1728792644350,-1082.40786797,0.00039046,5]
[340186352,1728792644359,-151.236,0.00039096,2]
[340186353,1728792644376,-576.442,0.00039096,2]
[340186354,1728792644388,-1157.0,0.00039096,2]
[340186355,1728792644397,-198.0,0.00039096,2]
[340186356,1728792644407,-641.088,0.00039096,2]
[340186357,1728792644416,-250.0,0.00039121,5]
[340186358,1728792644426,-250.0,0.00039121,5]
[340186359,1728792644436,-1867.27,0.00039178,2]
[340186360,1728792644446,-154.4428138,0.00039178,2]
[340186361,1728792644456,-153.0,0.00039178,2]
[340186362,1728792644466,-317.3629164,0.00039178,2]
[340186363,1728792644475,-299.2079142,0.00039178,2]
[340186364,1728792644484,-153.0,0.00039178,2]
[340186365,1728792644493,-153.0,0.00039178,2]
[340186366,1728792644503,-156.8796274,0.00039178,2]
[340186367,1728792644513,-413.7492508,0.00039178,2]
[340186368,1728792644522,-413.7492508,0.00039178,2]
[340186369,1728792644532,-351.1825809,0.00039178,2]
[340186370,1728792644542,-1028.28,0.000394,30]
[340186371,1728792644553,-1038.85951332,0.000394,30]
[340186372,1728792644568,-24.16048668,0.000394,30]
[340186373,1728792644578,-1183.31059724,0.00039452,2]
[340186374,1728792644589,-569.0492276,0.00039452,2]
[340186375,1728792644673,-153.507784,0.000295,10]
[340186376,1728792644683,-3883.6,0.00035606,10]
[340186377,1728792644693,-834.99,0.00036712,3]
[340186378,1728792644703,-114.91017516,0.00039452,2]
[340186379,1728792644712,-160.0,0.00039564,3]
[340186380,1728792644722,-499.999999,0.0003959,120]
[340186381,1728792644821,-154.903498,0.00039616,14]
[340186382,1728792644832,-151.0,0.00039616,7]
[340186383,1728792644841,-151.940354,0.00039616,14]
[340186384,1728792644851,-151.0,0.00039616,14]
[340186385,1728792644860,-151.0,0.00039616,14]
[340186386,1728792644869,-151.0,0.00039616,14]
[340186387,1728792644878,-528.275656,0.00039616,2]
[340186388,1728792644888,-151.0,0.00039616,14]
[340186389,1728792644897,-151.0,0.00039616,14]
[340186390,1728792644906,-151.0,0.00039616,14]
[340186391,1728792644915,-151.0,0.00039616,3]
[340186392,1728792644925,-151.0,0.00039616,14]
[340186393,1728792644934,-151.0,0.00039616,14]
[340186394,1728792644943,-151.0,0.00039616,14]
[340186395,1728792644953,-151.0,0.00039616,14]
[340186396,1728792644961,-151.0,0.00039616,14]
[340186397,1728792644970,-285.45667,0.00039616,14]
[340186398,1728792644979,-285.45667,0.00039616,14]
[340186399,1728792644988,-151.836906,0.00039626,14]
[340186400,1728792644997,-350.0,0.00039668,5]
[340186401,1728792645006,-415.20545244,0.00039668,5]
[340186402,1728792645016,-554.31352557,0.00039726,2]
[340186403,1728792755188,1579.69783618,0.00025,120]
[340186405,1728792812687,3990.0,0.0002,10]
[340186406,1728792941282,254.96770931,0.00024,2]
[340186413,1728793534104,-197.83138136,0.00024826,2]
[340186414,1728793534127,-2289.416136,0.00024834,2]
[340186415,1728793534149,-811.80220295,0.000249,2]
[340186416,1728793534172,-471.59866588,0.00024926,2]
[340186417,1728793534195,-170.133522,0.00025742,2]
[340186418,1728793534217,-3000.0,0.0002591,2]
[340186419,1728793534242,-300.0,0.00025936,2]
[340186420,1728793534264,-300.0,0.00025936,2]
[340186421,1728793534285,-330.59432499,0.00025936,2]
[340186422,1728793534306,-2414.70820819,0.00025937,2]
[340186425,1728793625102,-223.29988598,0.00025405,2]
[340186426,1728793638208,-530.91473457,0.00025405,2]
[340186427,1728793642092,-210.14199491,0.00025405,2]
[340186428,1728793642122,-50.60106654,0.00025405,2]
[340186429,1728793642144,-185.30073297,0.00025752,2]
[340186430,1728793720343,1819.48502653,0.0002201,16]
[340186434,1728793748159,-166.666666,0.00024587,2]
[340186435,1728793748179,-273.80847385,0.00025,120]
[340186436,1728793748200,-778.0538311,0.00025008,2]
[340186437,1728793748220,-300.0,0.00025089,2]
[340186438,1728793748239,-300.0,0.00025089,2]
[340186439,1728793748259,-19546.23604746,0.0002509,2]
[340186440,1728793748279,-166.666666,0.00025257,2]
[340186441,1728793748298,-400.0,0.00025469,3]
[340186442,1728793748319,-64.69926703,0.00025752,2]
[340186443,1728793748340,-250.0,0.00025823,2]
[340186444,1728793748366,-250.0,0.00025893,2]
[340186445,1728793748388,-166.666666,0.00025928,2]
[340186446,1728793748408,-22485.29179181,0.00025937,2]
[340186447,1728793748429,-250.0,0.00025959,2]
[340186448,1728793748450,-250.0,0.00025964,2]
[340186449,1728793748471,-631.0124223,0.00025982,2]
[340186450,1728793748492,-250.0,0.00026035,2]
[340186451,1728793748517,-209.334204,0.00026093,2]
[340186452,1728793748538,-250.0,0.00026105,2]
[340186453,1728793748560,-250.0,0.00026176,2]
[340186454,1728793748581,-250.0,0.00026247,2]
[340186455,1728793748603,-250.0,0.00026317,2]
[340186456,1728793748624,-250.0,0.00026388,2]
[340186457,1728793748645,-250.0,0.00026458,2]
[340186458,1728793748667,-7458.94652043,0.0002649,2]
[340186459,1728793748690,-230.6347444,0.00026505,2]
[340186460,1728793748715,-250.0,0.00026529,2]
[340186461,1728793748752,-166.666666,0.00026598,2]